Cogmind - Beta 16 @@@ ROGUE MODE // 2025.12.11 @ 08:37:38 Player: GermanMO Result: Destroyed by Y-45 Defender with Beam Rifle Performance ------------- Evolutions (1) 500 Regions Visited (3) 600 Robots Destroyed (38) 190 Value Destroyed (739) 739 Prototype IDs (1) 20 Alien Tech Used (0) 0 Bonus (0) 0 TOTAL SCORE: 2049 Bonus ------- None Cogmind --------- Core Integrity 0/400 Matter 279/300 Energy 266/280 System Corruption 0% Temperature Cool (72) Movement Rolling (110) Ox2 Location -9/Storage Parts ------- > --- POWER (1) -------- Cooled Ion Engine > --- PROPULSION (2) --- Wheel Wheel > --- UTILITY (4) ------ High-capacity Storage Unit > --- WEAPON (2) ------- Heavy EM Pulse Gun Heavy EM Pulse Gun > --- INVENTORY (20) --- Ion Engine Improved Terrain Scanner Seismic Detector Assault Rifle Improved Assault Rifle Rocket Launcher Rocket Launcher Mini Grenade Launcher Mini Grenade Launcher Mini Grenade Launcher Mini Grenade Launcher Mining Laser Mace Peak State ------------ > --- POWER ------------ Cooled Ion Engine > --- PROPULSION ------- Light Treads Wheel > --- UTILITY ---------- High-capacity Storage Unit > --- WEAPON ----------- Heavy EM Pulse Gun Heavy EM Pulse Gun > --- INVENTORY -------- Ion Engine Improved Terrain Scanner Seismic Detector Heavy EM Pulse Gun Assault Rifle Rocket Launcher Rocket Launcher Mini Grenade Launcher Mini Grenade Launcher Mini Grenade Launcher Mini Grenade Launcher Mining Laser Mace [Rating: 12] Favorites ----------- Power Light Ion Engine Engine Light Ion Engine Propulsion Wheel Treads Light Treads Wheel Wheel Utility High-capacity Storage Unit Device Improved Terrain Scanner Storage High-capacity Storage Unit Weapon Assault Rifle Energy Gun Heavy EM Pulse Gun Ballistic Gun Assault Rifle Launcher Rocket Launcher Impact Weapon Mace Build | -11 -10 -9 -9 ------- Run | Yrd Mat Mat Sto Slots Evolved 2 | . . 2 . Power . | . . . . Propulsion . | . . . . Utility 2 | . . 2 . Weapon . | . . . . Parts Attached 21 | 8 2 . 11 Power 2 | 1 . . 1 Engine 2 | 1 . . 1 Core . | . . . . Reactor . | . . . . Propulsion 7 | 3 . . 4 Treads 1 | . . . 1 Leg . | . . . . Wheel 6 | 3 . . 3 Hover . | . . . . Flight . | . . . . Utility 3 | 2 1 . . Device 1 | 1 . . . Storage 2 | 1 1 . . Processor . | . . . . Hackware . | . . . . Protection . | . . . . Artifact . | . . . . Weapon 9 | 2 1 . 6 Energy Gun 4 | . . . 4 Energy Cannon . | . . . . Ballistic Gun 2 | 2 . . . Ballistic Cannon . | . . . . Launcher 2 | . . . 2 Special Weapon . | . . . . Impact Weapon 1 | . 1 . . Slashing Weapon . | . . . . Piercing Weapon . | . . . . Special Melee Weapon . | . . . . Unidentified Prototypes 1 | . . . 1 Parts Lost 10 | . 1 . 9 Power 1 | . . . 1 Propulsion 3 | . . . 3 Utility 1 | . 1 . . Weapon 5 | . . . 5 Highest Loss Streak 5 | . 1 . 5 To Critical Strikes . | . . . . Average Backups 10 | 2 6 10 14 Power . | . 1 1 1 Propulsion . | . 1 1 . Utility 1 | . 2 2 2 Weapon 7 | . 2 6 11 Tool/Special . | . . . . Unused Backups 12 | . . . 12 Power 1 | . . . 1 Propulsion . | . . . . Utility 2 | . . . 2 Weapon 9 | . . . 9 Tool/Special . | . . . . Average Slot Usage (%) 67 | . 94 66 55 Engine 10 | . 14 11 9 Wheel 18 | . 28 22 13 Device 2 | . 8 . . Storage 11 | . 14 11 11 Energy Gun 5 | . . . 10 Ballistic Gun 8 | . 21 11 1 Impact Weapon 7 | . 6 11 7 Peak Build Rating 12 | 9 10 8 12 Average Rating 9 | 7 8 8 10 On Entrance 6 | . 9 8 8 Avg Prop Armor Cover (%) . | . . . . Naked Turns . | . . . . Heaviest Build 54 | 13 48 47 54 Greatest Support 26 | 26 20 20 20 Greatest Overweight (x) 17 | . 2 2 17 Average Overweight (x) 2 | . 1 2 3 Largest Inventory Capacity 20 | 8 20 20 20 Average Capacity 18 | 7 19 20 20 Most Carried 18 | 5 10 10 18 Average Carried 10 | 2 6 10 14 Final Capacity 20 | 8 20 20 20 Final Carried 13 | 5 10 10 13 Class Distribution -------------------- 100% | Mutant Dominant Class ---------------- Mutant | -10/Materials Mutant | -9/Materials Mutant | -9/Storage Resources | -11 -10 -9 -9 ----------- Run | Yrd Mat Mat Sto Matter Collected 615 | 334 109 . 172 Remotely . | . . . . Salvage Created 1092 | 208 166 45 673 Parts 87 | 23 14 1 49 Haulers Intercepted 2 | . . 1 1 Recyclers Shooed 2 | . 1 . 1 Parts Field Recycled . | . . . . Retrieved Matter . | . . . . Parts Self-Destructed . | . . . . Prevented . | . . . . Parts Restored . | . . . . Kills | -11 -10 -9 -9 ------- Run | Yrd Mat Mat Sto Combat Hostiles Destroyed 21 | . 6 . 15 Guns 13 | . 6 . 7 AOE 6 | . . . 6 Classes Destroyed 8 | 3 3 1 1 Worker 7 | 2 . . 5 Tunneler 5 | 5 . . . Hauler 2 | . . 1 1 Recycler 2 | 1 . . 1 Operator 1 | . 1 . . Swarmer 7 | . 3 . 4 Grunt 8 | . 3 . 5 Sentry 6 | . . . 6 Best Kill Streak 7 | 3 6 1 7 Combat Bots Only 6 | . 6 . 6 Max Kills in Single Turn 3 | 1 1 1 3 Gunslinging . | . . . . Exploded 2 | . . . 2 Melee . | . . . . Uniques/NPCs Destroyed . | . . . . Combat | -11 -10 -9 -9 -------- Run | Yrd Mat Mat Sto Hostile Shots Fired 150 | . 31 2 117 Missed 43 | . 11 1 31 Hits 107 | . 20 1 86 Projectile 107 | . 20 1 86 Critical Strikes 1 | . . . 1 Damage Taken 1325 | . 194 17 1114 Core 415 | . 11 . 404 Absorbed by Shields . | . . . . Core Remaining (%) 97 | 100 95 . . Volleys Fired 84 | 9 25 . 50 Largest 2 | 2 2 . 2 Hottest 90 | 40 40 . 90 Shots Fired 123 | 18 40 . 65 Gun 117 | 18 40 . 59 Cannon . | . . . . Launcher 6 | . . . 6 Special . | . . . . Kinetic 58 | 18 40 . . Thermal . | . . . . Explosive 6 | . . . 6 Electromagnetic 59 | . . . 59 Robot Hit Streak 12 | 7 5 . 12 Robot Miss Streak 3 | 2 3 . 3 Penetration Max . | . . . . Secondary Targets . | . . . . Shots Hit Robots 84 | 11 21 1 51 Core Hits 47 | 8 12 . 27 Critical Kills . | . . . . Critical Parts Destroyed . | . . . . Critical Strikes 3 | . . . 3 Corrupt 3 | . . . 3 Melee Attacks 13 | . 2 2 9 Impact 13 | . 2 2 9 Slashing . | . . . . Piercing . | . . . . Sneak Attacks 1 | . . 1 . Combat Hostiles . | . . . . Follow-up Attacks . | . . . . Damage Inflicted 1870 | 133 246 74 1417 Guns 1048 | 133 246 . 669 Cannons . | . . . . Explosions 649 | . . . 649 Melee 160 | . . 74 86 Ramming 13 | . . . 13 Kinetic 379 | 133 246 . . Thermal . | . . . . Explosive 649 | . . . 649 Electromagnetic 669 | . . . 669 Impact 160 | . . 74 86 Slashing . | . . . . Piercing . | . . . . Highest Corruption . | . . . . Average Corruption . | . . . . Corruption Purged . | . . . . Corruption Blocked . | . . . . Overload Shots . | . . . . Overflow Damage 53 | . . 52 1 Projectiles . | . . . . Explosions . | . . . . Melee 53 | . . 52 1 Knockbacks . | . . . . Impact . | . . . . Kinetic . | . . . . Secondary . | . . . . Self-Inflicted Damage 75 | . . . 75 Shots 3 | . . . 3 Rammed 1 | . . . 1 Targets Rammed 1 | . . . 1 Kicked . | . . . . Crushed . | . . . . Highest Temperature 84 | 6 . . 84 Average Temperature 28 | 6 . . 28 Received Heat Transfer 327 | . 66 . 261 Siege Activations . | . . . . Martial Activations . | . . . . Shielding Activations . | . . . . Robots Disrupted . | . . . . Combat Hostiles . | . . . . Robots Corrupted 3 | . . 1 2 Combat Hostiles 2 | . . . 2 Parts Fried 5 | . . 1 4 Impact Corruptions 2 | . . 1 1 Robots Melted . | . . . . Combat Hostiles . | . . . . Parts Melted . | . . . . Heat Transferred . | . . . . Parts Sabotaged . | . . . . Parts Stolen . | . . . . Parts Stripped . | . . . . Power Chain Reactions . | . . . . Alert | -11 -10 -9 -9 ------- Run | Yrd Mat Mat Sto Maximum Alert Level 1 | . . . 1 Low Security (%) 87 | 100 100 100 74 Level 1 12 | . . . 25 Level 2 . | . . . . Level 3 . | . . . . Level 4 . | . . . . Level 5 . | . . . . High Security . | . . . . Max Security . | . . . . Peak Influence 239 | 10 100 27 239 Initial 27 | . 6 27 . Average 86 | 2 40 6 151 Influence Increases 757 | 40 160 8 549 Destroy 0b10 Robot/C 420 | . 120 . 300 Destroy 0b10 Robot/NC 85 | 40 5 5 35 Destroy Leader 114 | . 20 2 92 Successful Hack 17 | . . . 17 Disable Machine 60 | . 15 . 45 Destroy Structure 31 | . . 1 30 Lose Combat Pursuer 30 | . . . 30 Influence Decreases 538 | 30 105 72 331 Entered New Map 43 | . 4 38 1 Time Decay 395 | 30 91 34 240 Lost Part 100 | . 10 . 90 Squads Dispatched 3 | . 1 . 2 Investigation . | . . . . Extermination . | . . . . Reinforcement 2 | . 1 . 1 Assault . | . . . . Garrison 1 | . . . 1 Intercept . | . . . . Searches Triggered . | . . . . Construction Impeded . | . . . . Haulers Reinforced . | . . . . Active Scanning Responses . | . . . . Cargo Convoy Interrupts . | . . . . Stealth | -11 -10 -9 -9 --------- Run | Yrd Mat Mat Sto Distress Signals 1 | . 1 . . Communications Jammed . | . . . . Distress Signals . | . . . . Times Spotted 35 | . 9 3 23 Peak Tracking Total 4 | . 4 3 4 Tactical Retreats 2 | . . . 2 Traps | -11 -10 -9 -9 ------- Run | Yrd Mat Mat Sto Traps Triggered 1 | . . . 1 Indirectly . | . . . . Trap Hack Attempts . | . . . . Triggered . | . . . . Disarmed . | . . . . Reprogrammed . | . . . . Reused . | . . . . Traps Extracted . | . . . . Installed . | . . . . Triggered . | . . . . Machines | -11 -10 -9 -9 ---------- Run | Yrd Mat Mat Sto Machines Disabled 4 | . 1 . 3 Max in Single Turn 1 | . 1 . 1 Garrison Access 1 | . . . 1 Machines Repaired . | . . . . Machines Dismantled . | . . . . Machines Sabotaged . | . . . . Overloaded Fab Kills . | . . . . Hacking | -11 -10 -9 -9 --------- Run | Yrd Mat Mat Sto Machines Accessed 5 | . . . 5 Terminals 4 | . . . 4 Fabricators . | . . . . Repair Stations . | . . . . Recycling Units . | . . . . Scanalyzers . | . . . . Garrison Access 1 | . . . 1 Total Hacks 7 | . . . 7 Successful 5 | . . . 5 Failed 2 | . . . 2 Catastrophic . | . . . . Database Lockouts . | . . . . Manual 1 | . . . 1 Terminals 6 | . . . 6 Fabricators . | . . . . Repair Stations . | . . . . Recycling Units . | . . . . Scanalyzers . | . . . . Garrison Access 1 | . . . 1 Terminal Hacks 3 | . . . 3 Part Schematic 1 | . . . 1 Open Door 2 | . . . 2 Fabricator Hacks . | . . . . Repair Station Hacks . | . . . . Recycling Unit Hacks . | . . . . Scanalyzer . | . . . . Garrison Access Hacks 1 | . . . 1 Seal Access 1 | . . . 1 Unauthorized Hacks 1 | . . . 1 Terminals 1 | . . . 1 Botnet 1 | . . . 1 Fabricators . | . . . . Repair Stations . | . . . . Recycling Units . | . . . . Scanalyzers . | . . . . Garrison Access . | . . . . Data Cores Recovered . | . . . . Used . | . . . . Hacking Detections 1 | . . . 1 Full Trace Events . | . . . . Feedback Events . | . . . . Feedback Blocked . | . . . . Robot Schematics Acquired . | . . . . Robots Built . | . . . . Authchips . | . . . . Time . | . . . . Total Robot Build Rating . | . . . . Part Schematics Acquired 1 | . . . 1 Parts Built . | . . . . Authchips . | . . . . Time . | . . . . Total Part Build Rating . | . . . . Part Studies Acquired . | . . . . Parts Repaired . | . . . . Time . | . . . . Parts Recycled . | . . . . Recycled Matter . | . . . . Retrieved Matter . | . . . . Retrieved Components . | . . . . Parts Scanalyzed . | . . . . Part Schematics Acquired . | . . . . Parts Damaged . | . . . . Bothacking | -11 -10 -9 -9 ------------ Run | Yrd Mat Mat Sto Used RIF Installer . | . . . . Robots Hacked . | . . . . Non-combat . | . . . . Combat . | . . . . Robot Hacks Applied . | . . . . Relay Couplers Released . | . . . . Fabnet Peak Effective % . | . . . . Robots Rewired . | . . . . Allies Hacked . | . . . . Hacks Repelled . | . . . . Allies | -11 -10 -9 -9 -------- Run | Yrd Mat Mat Sto Total Allies . | . . . . Largest Group . | . . . . Highest-Rated Group . | . . . . Highest-Rated Ally . | . . . . Total Orders . | . . . . Ally Attacks . | . . . . Total Damage . | . . . . Kills . | . . . . Allies Corrupted . | . . . . Allies Melted . | . . . . Intel | -11 -10 -9 -9 ------- Run | Yrd Mat Mat Sto Active Infowar (turns) 258 | 79 179 . . Terrain 258 | 79 179 . . Robot Analysis Total . | . . . . Derelict Logs Recovered . | . . . . Drone Launches . | . . . . Drone Recoveries . | . . . . Exploration | -11 -10 -9 -9 ------------- Run | Yrd Mat Mat Sto Turns Passed 1204 | 155 293 153 603 Spaces Moved 741 | 121 196 133 291 Core 6 | 2 . . 4 Treads . | . . . . Legs . | . . . . Wheels 735 | 119 196 133 287 Hover . | . . . . Flight . | . . . . Fastest Speed 50 | 50 80 110 110 Average Speed 116 | 82 106 110 140 Slowest Speed 900 | 90 110 110 900 Overloaded Moves . | . . . . Propulsion Burnouts . | . . . . Robots Hopped . | . . . . Potential Cave-ins . | . . . . Cave-ins Triggered . | . . . . Exploration Rate (%) 30 | 4 36 16 67 Regions Visited 3 Branch Regions 1 Pre-discovered Areas . | . . . . Known Exits Taken . | . . . . Unknown Exits Taken 3 | 1 1 1 . Scrap Searched . | . . . . Spaces Dug 8 | . . 1 7 Terrain Destroyed 30 | . . 1 29 Melee 2 | . . 1 1 Projectile . | . . . . AOE 28 | . . . 28 Terrain Rammed . | . . . . Walls Destroyed . | . . . . Machines Disabled . | . . . . Actions | -11 -10 -9 -9 --------- Run | Yrd Mat Mat Sto Total 933 | 154 238 136 405 Wait 43 | 10 6 2 25 Move 738 | 120 195 132 291 Hop . | . . . . Pick Up 21 | 5 5 . 11 Fast Attach 13 | 8 2 . 3 Attach 10 | . . . 10 Detach 4 | 1 1 . 2 Swap 1 | . . . 1 Drop 5 | 1 2 . 2 Fire 84 | 9 25 . 50 Melee 13 | . 2 2 9 Ram 1 | . . . 1 Kick . | . . . . Crush . | . . . . Escape Stasis . | . . . . Rewire . | . . . . Trap . | . . . . Miscellaneous . | . . . . Route ------- -11/Scrapyard -10/Materials -9/Materials -9/Storage History --------- Turn | Location | Event 28 | -11/Scrapyard | Discovered new exit (range 15) 156 | -11/Scrapyard | Entered Materials 312 | -10/Materials | Build established: Mutant 364 | -10/Materials | Discovered new exit (range 16) 449 | -10/Materials | Entered another Materials area 449 | -9/Materials | Evolved 2 slots: Utility x2 557 | -9/Materials | Discovered new exit (range 14) 602 | -9/Materials | Entered Storage 730 | -9/Storage | Garrison activated, responded to threat 769 | -9/Storage | Core integrity fell below 50% 785 | -9/Storage | Lost 5 parts (1p2n2w) 1075 | -9/Storage | Lost 3 parts (1n2w) 1075 | -9/Storage | Core integrity fell below 20% 1205 | -9/Storage | Destroyed by Y-45 Defender with Beam Rifle Last Messages --------------- 01147_ A bubble of electromagnetic force engulfs the area. 01147_ Stasis Trap short circuited. 01147_ Door malfunctions. 01147_ A bubble of rippling energy engulfs the area. 01154_ Connecting with Door Terminal... >>Open(Door) Sealed Heavy Doors opened. 01158_ Acquired Prototype Ballistic Gun. 01160_ Field strength at 86. 01161_ Field strength at 72. 01162_ U-05 Engineer lays Concrete. 01162_ ALERT: Hostiles spotted, dispatching reinforcements to Terminal S010. 01163_ Field strength at 58. 01167_ Field strength at 44. 01168_ Slammed into K-01 Serf. 01169_ Field strength at 30. 01188_ Hvy. EM Pulse Gun destroyed. 01200_ Heat Sink fried. 01200_ Y-45 Defender destroyed. Map ----- +----------------------------------------------------+ | ????????#####+#### #????????????????? | | ########### #####+#"###??????????????? | | # #??????????????? | | # ^ % #??????????????? | | # *#??????????????? | | ## ###"#### #########%#??????????????? | | ?#%#?####### ##?###???# #??????????????? | | ## #### %# ####T#####+####???????????? | | !=[[ + !! # #! #???????????? | | != # ] # #!** #???????????? | | + # # %% #??????????? | | #### # %+[""" """ """ ##??????????? | | #??# =#=! #*""" """ """ #???????????? | | #??# # *#[""" """ """ #???????????? | | #??# # ###############???????????? | | #??# |# #?????????????????????????? | | #??###### #????????##???????????????? | | ############ #??###### ####????????????? | | ?# # #??# #????????????? | | ?# # #?## #????????????? | | ?# # #?#" """ #????????????? | | ?? """" + #?#T """ #????????????? | | ?? """" # #?#" """ """ #????????????? | | ?? """" # #### R" #????????????? | | ?# """" # + """ #????????????? | | ?# /^ #### @!=#????????????? | | ?###########/###??########Y##????????????? | | ??????????# #####?????? % #????????????? | | ??????????# ]]]#?????#] ???????????? | | ??????????# [[#?????# ??????????? | | ??????????##T#####?????# ####?????????? | | ???????????###?????????## ###????????????? | | ????????????????????????# ???????????????? | | ????????????????????????# ???????????????? | | ????????????????????????# ???????????????? | | ????????????????????????#+???????????????? | | ?????????????????????????????????????????? | | ?????????????????????????????????????????? | | ?????????????????????????????????????????? | | ?????????????????????????????????????????? | | ?????????????????????????????????????????? | | ?????????????????????????????????????????? | | ?????????????????????????????????????????? | | ?????????????????????????????????????????? | | | | | | | | | | | | | +----------------------------------------------------+ Best States ------------- Heat Dissipation 28 Energy Generation 14 Energy Capacity 280 Matter Stores 300 Matter Capacity 300 Sight Range 16 Terrain Scan Range 16 Terrain Scan Density 10 Evasion (%) 44 Item Schematics ----------------- EM Shotgun | -9/Storage | Hacked Robot Schematics ------------------ None Fabricated ------------ Nothing Repaired ---------- Nothing Studied --------- None Alien Tech Used ----------------- None Achievements -------------- None Challenges ------------ None Game ------ Seed AblativeTechInsulator Manual? 0 Play Time 00:26:07 Cumulative 24.9 hours Start 2025.11.27 @ 09:01:05 End 2025.12.11 @ 08:37:38 Sessions 3 Manual Loads 0 Difficulty Rogue Special Mode None Game No. 34 Rogue 15 Adventurer 0 Explorer 19 Win Type - Total 0 Types 0/0/0/0/0/0/0/0/0/0 Lore% 20 Gallery% 24 Achievement% 20 Wizard Run 0 Options --------- Layout 0 ASCII 0 Keyboard 1 Movement Arrows Keybinds 0 Fullscreen 2 Font 12/Smallcaps Map View 76x50 Zoom Use 0% Tactical HUD 1 Map Filters NONE Filters NONE Steam X RUN: cde09caf-37cc-48cc-868f-ec8f3ce2f323